bitfinex/quotes_SOLUSD_20251030
["timestamp","ask_amount","ask_price","bid_price","bid_amount"]
[1761830870221,8.2114001,188.0,187.99,3.9343205]
[1761830870418,20.592,188.02,187.99,3.9343205]
[1761830870591,8.2114001,188.01,187.97,67.56996367]
[1761830870799,8.2114001,188.02,187.98,4.58489358]
[1761830870999,8.2114001,188.02,187.99,3.93489358]
[1761830871200,8.4114001,188.03,188.0,3.93489358]
[1761830871415,0.2,188.03,188.01,3.93489358]
[1761830871701,0.2,188.03,188.02,3.93489358]
[1761830871902,8.4114001,188.03,188.02,3.93489358]
[1761830872319,0.2,188.03,188.02,3.93489358]
[1761830872543,29.6034001,188.03,188.02,3.93489358]
[1761830872833,6.11830909,188.03,187.97,61.6]
[1761830873124,0.6,188.02,187.98,3.92902591]
[1761830873332,0.6,188.02,187.99,3.92902591]
[1761830873525,0.6,188.02,187.97,61.6]
[1761830873526,21.32405639,188.03,188.0,3.92902591]
[1761830873703,0.6,188.02,187.97,61.6]
[1761830873899,0.6,188.02,187.98,3.93063342]
[1761830874226,8.2114001,187.99,187.94,61.6]
[1761830874426,8.2114001,187.95,187.94,61.6]
[1761830874599,8.2114001,187.95,187.94,65.53194901]
[1761830874927,8.8114001,187.95,187.94,65.53194901]
[1761830875111,8.2114001,187.95,187.94,65.53194901]
[1761830875312,0.6,187.97,187.94,65.53194901]
[1761830875515,21.192,188.0,187.94,61.6]
[1761830875715,8.2114001,187.95,187.94,61.6]
[1761830875900,21.192,188.0,187.94,61.6]
[1761830876101,8.2114001,187.95,187.94,61.6]
[1761830876513,8.8114001,187.95,187.94,61.6]
[1761830876845,8.2114001,187.95,187.94,61.6]
[1761830877425,0.6,187.99,187.94,61.6]
[1761830877816,8.2114001,187.95,187.94,61.6]
[1761830879023,0.6,187.99,187.94,61.6]
[1761830879346,8.2114001,187.95,187.94,61.6]
[1761830879948,20.592,187.98,187.94,66.92084608]
[1761830880247,8.2114001,187.95,187.94,61.6]
[1761830880435,9.98882769,188.06,187.94,61.6]
[1761830880436,0.53205639,188.05,187.94,66.92058811]
[1761830880623,8.2114001,187.97,187.94,67.57058811]
[1761830881022,0.53205639,188.0,187.94,62.25]
[1761830881227,20.592,188.01,187.94,62.25]
[1761830881228,8.2114001,187.97,187.94,61.6]
[1761830881422,8.2114001,187.99,187.95,15.75939166]
[1761830881605,0.2,188.03,187.96,0.65]
[1761830881808,8.2114001,188.0,187.97,9.78882769]
[1761830882035,0.2,188.03,187.99,9.78882769]
[1761830882220,0.2,188.03,187.99,10.43882769]
[1761830882421,8.4114001,188.03,187.99,10.43882769]
[1761830882926,8.4114001,188.03,187.98,9.78882769]
[1761830882927,8.2114001,188.02,187.98,9.78882769]
[1761830883237,0.2,188.03,187.98,9.78882769]
[1761830883238,8.2114001,188.01,187.98,72.03882769]
[1761830883737,8.2114001,188.02,187.99,0.65]
[1761830884252,8.2114001,188.02,187.99,5.96942924]
[1761830884467,8.2114001,188.0,187.96,61.6]
[1761830884616,8.2114001,187.99,187.97,61.6]
[1761830884820,8.2114001,188.0,187.97,62.25]
[1761830885142,8.2114001,187.99,187.97,61.6]
[1761830885543,20.592,188.01,187.97,62.25]
[1761830885836,8.2114001,187.99,187.97,61.6]
[1761830886038,8.2114001,187.99,187.98,0.65]
[1761830886622,8.2114001,187.99,187.97,61.6]
[1761830886820,8.2114001,187.99,187.97,62.25]
[1761830887021,8.2114001,187.98,187.97,61.6]
[1761830888619,20.592,188.0,187.97,61.6]
[1761830888949,8.2114001,187.99,187.97,62.25]
[1761830889148,8.2114001,187.98,187.97,62.25]
[1761830889350,0.2,188.03,187.97,62.25]
[1761830889533,8.2114001,187.98,187.97,61.6]
[1761830889845,8.2114001,187.98,187.94,0.68]
[1761830889846,20.592,188.0,187.98,53.3885999]
[1761830891145,8.2114001,187.99,187.98,53.3885999]
[1761830891375,1.13205639,187.99,187.98,53.3885999]
[1761830891544,28.8034001,187.99,187.98,53.3885999]
[1761830891740,20.592,187.99,187.98,53.3885999]
[1761830891943,28.8034001,187.99,187.98,53.3885999]
[1761830892353,20.592,187.99,187.98,53.3885999]
[1761830892571,28.8034001,187.99,187.98,53.3885999]
[1761830893286,29.4034001,187.99,187.98,53.3885999]
[1761830893451,28.8034001,187.99,187.98,53.3885999]
[1761830893642,20.592,187.99,187.98,53.3885999]
[1761830894050,28.8034001,187.99,187.98,53.3885999]
[1761830896247,20.592,187.99,187.98,59.38831476]
[1761830896455,0.2,188.03,187.99,9.78882769]
[1761830896647,0.2,188.03,188.0,0.68]
[1761830897359,0.2,188.03,188.01,18.00022779]
[1761830897672,0.2,188.03,188.02,10.46882769]
[1761830899640,8.2114001,188.05,188.02,10.46882769]
[1761830899851,8.2114001,188.05,188.03,0.68]
[1761830900054,0.2,188.06,188.03,0.68]
[1761830900260,8.4114001,188.06,188.03,0.68]
[1761830900468,8.2114001,188.05,188.03,0.68]
[1761830902345,8.2114001,188.04,188.03,0.68]
[1761830902551,0.2,188.06,188.03,4.64177515]
[1761830902746,20.792,188.06,188.04,3.96177515]
[1761830902966,8.2114001,188.05,188.01,15.7876937]
[1761830903152,20.792,188.06,188.02,4.6404005]
[1761830903351,20.792,188.06,188.03,3.9604005]
[1761830903352,8.2114001,188.04,188.03,3.9604005]
[1761830903549,0.2,188.06,188.05,45.1771998]
[1761830903874,8.4114001,188.06,188.05,45.1771998]
[1761830904453,29.0034001,188.06,188.05,45.1771998]
[1761830906076,29.0034001,188.06,188.02,45.1771998]
[1761830906077,29.6034001,188.06,188.02,45.1771998]
[1761830906252,20.792,188.06,188.02,45.1771998]
[1761830906459,20.792,188.06,188.03,0.68]
[1761830906662,0.2,188.06,188.03,0.68]
[1761830907181,0.2,188.06,188.03,5.99808256]
[1761830907674,0.2,188.06,188.03,5.97808256]
[1761830908057,0.2,188.06,188.03,5.31808256]
[1761830908377,0.2,188.06,188.05,9.78882769]
[1761830908977,0.2,188.06,188.05,10.44882769]
[1761830909155,0.2,188.06,188.05,23.97796243]
[1761830909357,0.2,188.06,188.05,69.68693569]
[1761830909978,0.2,188.06,188.05,69.15516223]
[1761830910487,8.4114001,188.1,188.05,69.15516223]
[1761830910488,0.2,188.1,188.08,9.78882769]
[1761830910670,0.2,188.14,188.09,8.74306047]
[1761830910875,0.2,188.14,188.13,18.00022779]
[1761830911373,0.2,188.14,188.13,23.97570113]
[1761830912153,0.2,188.14,188.13,15.76430103]
[1761830912384,0.2,188.14,188.13,23.97570113]
[1761830912556,0.2,188.14,188.13,27.91273169]
[1761830913765,0.2,188.14,188.13,19.70133159]
[1761830913971,0.2,188.14,188.13,27.91273169]
[1761830914758,0.2,188.18,188.14,9.78882769]
[1761830914973,0.2,188.18,188.15,16.07608639]
[1761830915175,0.2,188.18,188.16,7.86468629]
[1761830915461,0.2,188.18,188.17,7.86468629]
[1761830915962,0.2,188.18,188.17,22.0504298]
[1761830916281,0.2,188.18,188.17,31.83925749]
[1761830916482,0.2,188.18,188.17,77.01645729]
[1761830916674,0.2,188.18,188.17,77.54789163]
[1761830917352,0.2,188.18,188.17,69.33649153]
[1761830917607,0.2,188.18,188.17,77.54789163]
[1761830919399,0.2,188.22,188.21,50.09041376]
[1761830919585,0.2,188.22,188.21,13.17790025]
[1761830919758,0.2,188.22,188.21,13.85790025]
[1761830920563,0.2,188.22,188.21,76.63532784]
[1761830920763,0.2,188.22,188.21,68.42392774]
[1761830920962,0.2,188.22,188.21,76.63532784]
[1761830921207,0.2,188.22,188.21,52.64188609]
[1761830921614,8.4114001,188.22,188.21,48.70485553]
[1761830922111,0.2,188.22,188.21,48.70485553]
[1761830922290,8.4114001,188.22,188.21,48.70485553]
[1761830922492,9.1214001,188.22,188.21,48.70485553]
[1761830922734,14.43433177,188.22,188.21,3.92765573]
[1761830922882,14.96638816,188.22,188.21,3.92765573]
[1761830923078,9.1214001,188.22,188.21,3.92765573]
[1761830923476,9.65345649,188.22,188.21,3.92765573]
[1761830923671,9.1214001,188.22,188.21,3.92765573]
[1761830923894,9.65345649,188.22,188.21,3.92765573]
[1761830924283,14.96638816,188.22,188.21,3.92765573]
[1761830924486,9.65345649,188.22,188.21,3.92765573]
[1761830924890,9.1214001,188.22,188.21,3.92765573]
[1761830925385,6.30459069,188.22,188.21,3.92765573]
[1761830926709,12.14957875,188.22,188.21,3.92765573]
[1761830927014,6.30459069,188.22,188.21,3.92765573]
[1761830927217,5.59459069,188.22,188.21,3.92765573]
[1761830927378,0.2,188.22,188.21,4.60765573]
[1761830927580,0.2,188.22,188.21,8.50517777]
[1761830929306,0.2,188.22,188.21,7.82517777]
[1761830930003,5.59459069,188.22,188.21,7.82517777]
[1761830930207,11.61752236,188.22,188.21,3.92765573]
[1761830931309,11.61752236,188.22,188.13,0.68]
[1761830931507,5.39459069,188.16,188.14,3.90302307]
[1761830931810,5.39459069,188.16,188.15,3.90302307]
[1761830932201,6.55546329,188.21,188.15,3.90302307]
[1761830932395,5.39459069,188.16,188.13,5.99544276]
[1761830932613,5.39459069,188.17,188.14,3.90419126]
[1761830932784,5.39459069,188.17,188.15,3.90419126]
[1761830932984,5.39459069,188.17,188.16,3.90419126]
[1761830933394,2.11914507,188.17,188.15,3.90419126]
[1761830933686,2.11914507,188.17,188.16,3.90419126]
[1761830933990,2.11914507,188.17,188.15,3.90419126]
[1761830934322,2.11914507,188.17,188.16,3.90419126]
[1761830934689,2.11914507,188.17,188.15,3.90419126]
[1761830934890,2.11914507,188.17,188.16,3.90419126]
[1761830935617,2.11914507,188.17,188.15,3.90419126]
[1761830937407,0.2,188.22,188.17,9.78882769]
[1761830937720,0.2,188.22,188.18,3.90419126]
[1761830938019,0.91,188.22,188.19,3.90419126]
[1761830938321,2.11914507,188.2,188.17,0.68]
[1761830938488,2.11914507,188.19,188.18,3.91812714]
[1761830938693,0.91,188.22,188.18,3.91812714]
[1761830938694,2.11914507,188.2,188.18,3.91812714]
[1761830938915,2.11914507,188.2,188.19,3.91812714]
[1761830939313,2.11914507,188.2,188.18,3.91812714]
[1761830939509,2.11914507,188.21,188.19,3.91812714]
[1761830939809,2.11914507,188.21,188.2,3.91812714]
[1761830940316,2.11914507,188.21,188.17,5.9942383]
[1761830940689,2.11914507,188.21,188.18,0.68]
[1761830940918,2.11914507,188.2,188.15,0.68]
[1761830941119,2.11914507,188.19,188.15,0.68]
[1761830941425,2.11914507,188.21,188.15,2.79914507]
[1761830941614,22.71114507,188.21,188.15,2.79914507]
[1761830941817,2.11914507,188.19,188.16,0.68]
[1761830942122,20.592,188.21,188.16,0.68]
[1761830942299,2.11914507,188.18,188.16,0.68]
[1761830943006,2.11914507,188.17,188.14,0.68]
[1761830943897,2.11914507,188.18,188.14,0.68]
[1761830944115,2.11914507,188.18,188.15,5.31490831]
[1761830944513,2.11914507,188.18,188.16,0.68]
[1761830944729,2.11914507,188.18,188.16,166.38]
[1761830945700,2.11914507,188.2,188.17,0.68]
[1761830946021,2.11914507,188.18,188.16,165.7]
[1761830946833,2.11914507,188.18,188.16,166.38]
[1761830947313,2.11914507,188.17,188.16,165.7]
[1761830948134,0.71,188.2,188.16,165.7]
[1761830948304,2.11914507,188.21,188.17,0.68]
[1761830948830,2.11914507,188.2,188.17,0.68]
[1761830950226,2.11914507,188.2,188.17,5.99420293]
[1761830950903,2.11914507,188.2,188.17,5.31420293]
[1761830951130,2.11914507,188.2,188.17,5.97420293]
[1761830951331,2.11914507,188.19,188.17,0.66]
[1761830951625,2.11914507,188.18,188.16,61.6]
[1761830951935,2.11914507,188.17,188.16,61.6]
[1761830953427,2.11914507,188.17,188.16,165.7]
[1761830954021,2.11914507,188.18,188.16,171.67456569]
[1761830954411,2.11914507,188.17,188.16,166.36]
[1761830954736,0.2,188.22,188.17,0.66]
[1761830954927,0.2,188.22,188.19,20.71737025]
[1761830955327,0.2,188.22,188.2,0.72]
[1761830957130,0.2,188.22,188.21,5.31321396]
[1761830957734,0.2,188.22,188.21,6.03321396]
[1761830961832,0.2,188.22,188.2,5.31342808]
[1761830962029,2.31914507,188.22,188.19,61.6]
[1761830962234,2.11914507,188.21,188.19,61.6]
[1761830962643,2.11914507,188.2,188.19,61.6]
[1761830962831,0.72,188.21,188.17,5.31427434]
[1761830963017,2.11914507,188.18,188.12,0.72]
[1761830963337,2.11914507,188.16,188.13,5.31547334]
[1761830963528,2.11914507,188.16,188.13,18.60415669]
[1761830963713,2.11914507,188.16,188.13,19.32415669]
[1761830963912,0.72,188.2,188.13,19.32415669]
[1761830964218,2.11914507,188.16,188.13,19.32415669]
[1761830964420,2.11914507,188.16,188.14,0.72]
[1761830965021,2.11914507,188.17,188.14,0.72]
[1761830965436,0.73205639,188.22,188.15,5.31490831]
[1761830965635,2.11914507,188.2,188.16,0.72]
[1761830966141,2.11914507,188.19,188.16,0.72]
[1761830967145,0.2,188.22,188.15,5.31490831]
[1761830967146,2.11914507,188.17,188.15,5.31490831]
[1761830967339,2.11914507,188.16,188.13,67.63523827]
[1761830967521,0.72,188.19,188.13,67.63523827]
[1761830967729,2.11914507,188.15,188.13,67.63523827]
[1761830969138,2.11914507,188.16,188.14,0.72]
[1761830969313,2.11914507,188.17,188.14,0.72]
[1761830969713,2.11914507,188.16,188.14,0.72]
[1761830970153,2.11914507,188.17,188.14,0.72]
[1761830971225,2.11914507,188.17,188.14,6.03515153]
[1761830971514,2.11914507,188.19,188.14,62.32]
[1761830971850,2.11914507,188.19,188.07,9.19658028]
[1761830971851,2.11914507,188.15,188.08,0.72]
[1761830972016,20.592,188.16,188.08,62.32]
[1761830972017,2.11914507,188.1,188.08,62.32]
[1761830972214,2.11914507,188.1,188.08,0.72]
[1761830972453,2.11914507,188.1,188.09,0.72]
[1761830972819,2.11914507,188.1,188.09,6.03660375]
[1761830973723,2.11914507,188.1,188.09,0.72]
[1761830974328,2.11914507,188.1,188.09,6.03660375]
[1761830976460,2.11914507,188.1,188.09,0.72]
[1761830976650,2.11914507,188.1,188.07,62.32]
[1761830976844,2.11914507,188.08,188.07,62.32]
[1761830977847,0.72,188.13,188.07,67.63703813]
[1761830978154,2.11914507,188.08,188.07,67.63703813]
[1761830978356,0.72,188.12,188.07,61.6]
[1761830978563,2.11914507,188.08,188.07,61.6]
[1761830980050,2.11914507,188.08,188.06,61.6]
[1761830980353,2.11914507,188.07,188.06,61.6]
[1761830980859,0.53205639,188.12,188.06,61.6]
[1761830981059,0.67,188.16,188.07,12.61797276]
[1761830981265,2.11914507,188.13,188.07,176.19882769]
[1761830981434,2.11914507,188.13,188.08,6.02688643]
[1761830981642,2.11914507,188.14,188.08,8.1460315]
[1761830981843,2.11914507,188.14,188.09,0.71]
[1761830983167,2.11914507,188.15,188.09,168.52914507]
[1761830983662,2.11914507,188.14,188.1,6.0263211]
[1761830984034,2.11914507,188.14,188.11,0.71]
[1761830984250,2.11914507,188.14,188.11,166.41]
[1761830984953,2.11914507,188.16,188.12,0.71]
[1761830985458,3.31137174,188.16,188.12,0.71]
[1761830985835,3.31137174,188.18,188.12,4.02137174]
[1761830986038,3.31137174,188.18,188.12,169.72137174]
[1761830986231,3.31137174,188.17,188.13,0.71]
[1761830986432,3.31137174,188.16,188.13,0.71]
[1761830986973,3.31137174,188.14,188.12,165.7]
[1761830987142,8.62528687,188.19,188.12,165.7]
[1761830987143,3.31137174,188.13,188.12,165.7]
[1761830987955,3.31137174,188.13,188.1,0.71]
[1761830988145,3.31137174,188.13,188.1,6.02627025]
[1761830988353,3.31137174,188.12,188.09,5.31653537]
[1761830988745,3.31137174,188.12,188.1,0.71]
[1761830989051,3.31137174,188.12,188.09,5.31653537]
[1761830989052,3.31137174,188.12,188.09,6.02653537]
[1761830989253,3.31137174,188.12,188.09,5.31653537]
[1761830989471,3.31137174,188.12,188.1,0.71]
[1761830991275,3.31137174,188.12,188.1,6.02629202]
[1761830991641,3.31137174,188.12,188.1,6.02625484]
[1761830991839,3.31137174,188.12,188.1,0.71]
[1761830992372,5.31457838,188.17,188.11,0.71]
[1761830992373,3.31137174,188.13,188.11,0.71]
[1761830992870,20.592,188.16,188.11,0.71]
[1761830993071,3.31137174,188.13,188.11,0.71]
[1761830993266,3.31137174,188.13,188.11,6.02595214]
[1761830993566,3.31137174,188.16,188.11,6.02595214]
[1761830993772,6.51663477,188.21,188.12,0.71]
[1761830993773,3.31137174,188.17,188.12,0.71]
[1761830994345,3.31137174,188.17,188.12,4.02137174]
[1761830994570,3.31137174,188.17,188.13,0.71]
[1761830994869,3.31137174,188.17,188.07,53.69369264]
[1761830994870,3.31137174,188.14,188.06,0.71]
[1761830995044,20.592,188.15,188.06,0.71]
[1761830995045,3.31137174,188.08,188.06,0.71]
[1761830995244,3.31137174,188.09,188.06,6.02743329]
[1761830995667,3.31137174,188.09,188.07,0.71]
[1761830996470,3.31137174,188.1,188.07,0.71]
[1761830996672,3.31137174,188.09,188.07,0.71]
[1761830997655,3.31137174,188.09,188.07,6.02711943]
[1761830997861,3.31137174,188.09,188.07,0.71]
[1761830998255,3.31137174,188.08,188.05,0.71]
[1761830998451,3.31137174,188.08,188.04,0.71]
[1761830998883,3.31137174,188.08,188.05,0.71]
[1761830999174,3.31137174,188.09,188.05,0.71]
[1761830999381,0.67,188.14,188.06,18.61108156]
[1761830999584,3.31137174,188.13,188.07,13.10019943]
[1761830999761,3.31137174,188.15,188.09,13.10019943]
[1761831000086,3.31137174,188.16,188.11,13.10019943]
[1761831000296,3.31137174,188.15,188.12,0.71]
[1761831000591,3.31137174,188.13,188.05,0.71]
[1761831000818,3.31137174,188.07,188.05,0.71]
[1761831001100,3.31137174,188.07,188.01,90.9765868]
[1761831001101,3.31137174,188.07,188.02,6.02831809]
[1761831001271,3.31137174,188.06,188.02,6.02831809]
[1761831001468,3.31137174,188.1,188.03,0.71]
[1761831001680,3.31137174,188.05,188.03,0.71]
[1761831001998,3.31137174,188.07,188.03,0.71]
[1761831002200,3.31137174,188.05,188.01,20.592]
[1761831002357,3.31137174,188.02,187.98,0.71]
[1761831002553,1.20205639,188.09,187.98,9.34105601]
[1761831002793,3.31137174,188.06,188.0,3.31137174]
[1761831002959,3.31137174,188.07,188.02,3.31137174]
[1761831003284,3.31137174,188.07,188.03,0.71]
[1761831003491,3.31137174,188.07,188.02,3.31137174]
[1761831003492,8.2080543,188.05,188.02,0.71]
[1761831003666,8.2080543,188.05,188.0,5.31891338]
[1761831003980,8.2080543,188.05,188.03,0.71]
[1761831004190,1.20205639,188.09,188.03,0.71]
[1761831004374,8.2080543,188.06,188.03,0.71]
[1761831004686,0.53205639,188.11,188.03,0.71]
[1761831004888,8.2080543,188.08,188.03,0.71]
[1761831005088,1.20205639,188.11,188.0,5.31891338]
[1761831005089,8.2080543,188.06,188.0,5.31891338]
[1761831005258,20.592,188.08,188.01,0.71]
[1761831005459,8.2080543,188.07,188.02,13.52663742]
[1761831005660,8.2080543,188.07,188.03,0.71]
[1761831006162,8.2080543,188.09,188.04,9.78882769]
[1761831006369,8.2080543,188.13,188.08,9.78882769]
[1761831006595,8.2080543,188.13,188.07,9.78882769]
[1761831006880,0.67,188.17,188.09,8.2080543]
[1761831006881,8.2080543,188.14,188.09,8.2080543]
[1761831007077,8.2080543,188.1,188.06,9.78882769]
[1761831007288,8.2080543,188.1,188.07,0.71]
[1761831007462,8.2080543,188.1,188.07,171.72700824]
[1761831007659,8.2080543,188.08,188.07,166.41]
[1761831007906,8.2080543,188.08,188.02,62.31]
[1761831008188,0.67,188.12,188.03,0.71]
[1761831008403,0.53205639,188.12,188.04,9.78882769]
[1761831008609,8.2080543,188.08,188.03,70.5180543]
[1761831008760,8.2080543,188.08,188.03,62.31]
[1761831008959,8.2080543,188.08,188.04,0.71]
[1761831009392,1.20205639,188.12,188.05,5.31773464]
[1761831009675,8.2080543,188.06,188.04,61.6]
[1761831009986,0.53205639,188.11,188.05,0.65]
[1761831010219,8.2080543,188.09,188.05,0.65]
[1761831010496,20.592,188.12,188.05,0.65]
[1761831010785,8.2080543,188.1,188.05,8.8580543]
[1761831010995,5.84707798,188.15,188.05,8.8580543]
[1761831010996,0.53205639,188.15,188.06,8.2080543]
[1761831011185,8.2080543,188.14,188.09,8.2080543]
[1761831011365,10.52088408,188.22,188.13,18.60415669]
[1761831011366,0.53205639,188.21,188.13,18.60415669]
[1761831011580,8.2080543,188.19,188.13,26.81221099]
[1761831011773,8.2080543,188.19,188.14,8.8580543]
[1761831011976,8.2080543,188.15,188.12,0.65]
[1761831012196,8.2080543,188.14,188.1,0.65]
[1761831012387,0.7,188.17,188.1,0.65]
[1761831012388,8.2080543,188.13,188.1,0.65]
[1761831012775,8.2080543,188.12,188.07,9.78882769]
[1761831012979,8.2080543,188.1,188.07,0.65]
[1761831013194,8.2080543,188.08,188.04,13.94482994]
[1761831013494,8.2080543,188.07,188.03,5.31830027]
[1761831013694,1.23205639,188.13,188.03,5.31830027]
[1761831013695,8.2080543,188.09,188.04,17.99688199]
[1761831014011,8.2080543,188.09,188.04,10.43882769]
[1761831014178,20.592,188.14,188.06,17.99688199]
[1761831014380,8.2080543,188.11,188.06,9.78882769]
[1761831014580,8.2080543,188.12,188.07,8.8580543]
[1761831014780,8.2080543,188.12,188.08,0.65]
[1761831015226,8.2080543,188.12,188.05,9.78882769]
[1761831015227,8.2080543,188.09,188.05,0.65]
[1761831015499,21.12405639,188.16,188.07,9.78882769]
[1761831015708,8.2080543,188.14,188.08,8.2080543]
[1761831015889,8.2080543,188.14,188.08,8.9280543]
[1761831016098,2.19999999,188.25,188.14,9.78882769]
[1761831016099,0.89,188.25,188.14,9.78882769]
[1761831016278,8.4080543,188.25,188.19,8.2080543]
[1761831016614,8.2080543,188.21,188.15,0.72]
[1761831016780,8.2080543,188.19,188.15,0.72]
[1761831016977,0.2,188.25,188.18,8.2080543]
[1761831017195,0.2,188.25,188.19,0.72]
[1761831017196,8.2080543,188.24,188.19,0.72]
[1761831017369,0.2,188.25,188.19,0.72]
[1761831017370,8.2080543,188.23,188.19,0.72]
[1761831017571,0.2,188.25,188.12,0.53157559]
[1761831017572,8.2080543,188.21,188.12,0.53157559]
[1761831017773,8.2080543,188.21,188.16,17.99688199]
[1761831018004,8.2080543,188.24,188.18,8.2080543]
[1761831018179,8.4080543,188.22,188.18,0.72]
[1761831018571,0.2,188.22,188.19,0.72]
[1761831019717,0.2,188.22,188.19,6.03367379]
[1761831019912,8.4080543,188.22,188.16,6.0346095]
[1761831020124,8.2080543,188.21,188.16,14.2426638]
[1761831020282,8.2080543,188.21,188.16,27.52922842]
[1761831020487,8.2080543,188.21,188.17,0.72]
[1761831021216,0.2,188.22,188.17,0.72]
[1761831021390,0.2,188.22,188.17,8.9280543]
[1761831021705,0.2,188.22,188.18,5.314061]
[1761831021926,8.4080543,188.22,188.18,6.034061]
[1761831022307,8.4080543,188.22,188.18,171.734061]
[1761831022621,8.4080543,188.22,188.11,26.5791072]
[1761831022622,8.2080543,188.19,188.11,61.6]
[1761831022794,8.2080543,188.12,188.07,6.03700625]
[1761831022999,8.2080543,188.11,188.07,5.31700625]
[1761831023294,8.2080543,188.12,188.08,0.72]
[1761831023498,8.2080543,188.13,188.09,5.31660375]
[1761831023915,8.2080543,188.13,188.09,6.03660375]
[1761831024121,8.2080543,188.12,188.09,0.72]
[1761831024322,8.2080543,188.1,188.07,9.78882769]
[1761831024503,8.2080543,188.08,188.02,8.9280543]
[1761831024704,8.2080543,188.07,188.03,0.72]
[1761831025019,8.2080543,188.06,187.96,0.53202809]
[1761831025249,8.2080543,188.0,187.96,16.51786337]
[1761831025389,8.2080543,188.0,187.97,5.51998783]
[1761831025594,0.69,188.03,187.97,0.2]
[1761831025811,8.2080543,187.99,187.97,0.2]
[1761831026018,8.2080543,187.99,187.97,5.5199559]
[1761831026326,8.2080543,187.99,187.97,0.2]
[1761831026530,0.69,188.03,187.97,0.2]
[1761831026737,8.2080543,187.99,187.97,0.2]
[1761831027334,0.69,188.06,187.98,0.72]
[1761831027538,6.53875119,188.09,188.0,5.31914893]
[1761831027831,6.53875119,188.09,187.99,8.2080543]
[1761831027832,8.2080543,188.02,187.98,6.03943696]
[1761831028023,5.84875119,188.09,187.98,6.03943696]
[1761831028024,8.2080543,188.01,187.98,0.72]
[1761831028222,8.2080543,188.01,187.97,0.2]
[1761831028223,8.2080543,188.01,187.97,9.98882769]
[1761831028415,8.2080543,188.01,187.97,10.70882769]
[1761831028606,8.2080543,187.98,187.97,0.2]
[1761831028804,8.2080543,187.99,187.97,0.2]
[1761831029023,8.2080543,188.03,187.97,37.53683519]
[1761831029229,0.53205639,188.11,188.02,17.99688199]
[1761831029558,0.53205639,188.11,188.05,8.2080543]
[1761831029559,8.2080543,188.11,188.05,8.2080543]
[1761831029711,8.2080543,188.11,188.06,5.31745187]
[1761831029911,8.2080543,188.12,188.06,13.52550617]
[1761831030219,8.2080543,188.13,188.07,8.9280543]
[1761831030432,8.2080543,188.12,188.07,10.50882769]
[1761831030814,8.2080543,188.08,188.03,9.78882769]
[1761831031142,8.2080543,188.07,188.03,0.72]
[1761831031525,20.592,188.14,188.05,17.99688199]
[1761831031713,13.48291793,188.22,188.09,8.2080543]
[1761831031714,0.69,188.17,188.09,8.2080543]
[1761831031914,0.69,188.21,188.12,9.78882769]
[1761831032233,8.2080543,188.18,188.12,0.72]
[1761831032551,0.53205639,188.2,188.1,9.78882769]
[1761831032709,8.2080543,188.13,188.07,6.03716913]
[1761831032908,8.2080543,188.11,188.07,0.72]
[1761831033129,8.2080543,188.09,188.05,9.78882769]
[1761831033341,8.2080543,188.07,188.04,0.72]
[1761831033530,8.2080543,188.06,188.04,0.72]
[1761831033710,8.2080543,188.05,188.02,15.10717361]
[1761831033911,0.69,188.15,188.04,17.99688199]
[1761831034138,8.2080543,188.09,188.04,9.78882769]
[1761831034331,8.2080543,188.09,188.04,10.50882769]
[1761831034637,0.69,188.13,188.05,0.72]
[1761831034837,0.69,188.13,188.02,0.72]
[1761831034838,8.2080543,188.08,188.02,0.72]
[1761831035011,8.2080543,188.08,188.04,9.78882769]
[1761831035437,8.2080543,188.08,188.04,10.50882769]
[1761831035637,21.282,188.13,188.05,5.31773464]
[1761831035638,27.12971297,188.13,188.05,5.31773464]
[1761831035937,21.282,188.12,188.05,165.7]
[1761831036141,8.2080543,188.08,188.05,165.7]
[1761831036643,8.2080543,188.07,188.05,165.7]
[1761831037042,8.2080543,188.06,188.05,165.7]
[1761831037338,8.2080543,188.06,188.05,61.6]
[1761831037948,8.8980543,188.06,188.05,61.6]
[1761831038222,14.74756256,188.06,188.01,61.6]